Cogmind - Beta 11 @@@ ROGUE MODE // 2022.04.09 @ 23:09:54 Player: Red Box Result: Destroyed by G-34 Mercenary with Small Laser Performance ------------- Evolutions (0) 0 Regions Visited (1) 200 Robots Destroyed (23) 115 Value Destroyed (531) 531 Prototype IDs (0) 0 Alien Tech Used (0) 0 Bonus (0) 0 TOTAL SCORE: 846 Bonus ------- None Cogmind --------- Core Integrity 0/250 Matter 290/300 Energy 226/250 System Corruption 0% Temperature Warm (159) Movement Rolling (125) Ox3 Location -10/Materials Parts ------- > --- POWER (1) -------- Ion Engine > --- PROPULSION (2) --- Wheel > --- UTILITY (2) ------ Heat Sink Large Storage Unit > --- WEAPON (2) ------- Particle Gun Particle Gun > --- INVENTORY (15) --- Light Treads Light Treads Wheel Wheel Large Storage Unit High-capacity Matter Pod (200) Improved Terrain Scanner Targeting Computer Utility Shielding Assault Rifle Grenade Launcher Mining Claw Peak State ------------ > --- POWER ------------ Light Ion Engine > --- PROPULSION ------- Aluminum Leg Aluminum Leg > --- UTILITY ---------- Small Storage Unit Improved Terrain Scanner > --- WEAPON ----------- Medium Laser Medium Laser > --- INVENTORY -------- Light Ion Engine Light Treads Light Treads Wheel Wheel Wheel Assault Rifle [Rating: 9] Favorites ----------- Power Light Ion Engine Engine Light Ion Engine Propulsion Wheel Leg Aluminum Leg Wheel Wheel Utility Heat Sink Device Heat Sink Storage Small Storage Unit Weapon Medium Laser Energy Gun Medium Laser Build | -11 -10 ------- Run | Scr Mat Slots Evolved . | . . Power . | . . Propulsion . | . . Utility . | . . Weapon . | . . Parts Attached 18 | 7 11 Power 2 | 1 1 Engine 2 | 1 1 Core . | . . Reactor . | . . Propulsion 6 | 2 4 Treads . | . . Leg 2 | 2 . Wheel 4 | . 4 Hover . | . . Flight . | . . Utility 6 | 2 4 Device 3 | 1 2 Storage 3 | 1 2 Processor . | . . Hackware . | . . Protection . | . . Artifact . | . . Weapon 4 | 2 2 Energy Gun 4 | 2 2 Energy Cannon . | . . Ballistic Gun . | . . Ballistic Cannon . | . . Launcher . | . . Special Weapon . | . . Impact Weapon . | . . Slashing Weapon . | . . Piercing Weapon . | . . Special Melee Weapon . | . . Unidentified Prototypes . | . . Parts Lost 6 | . 6 Power 1 | . 1 Propulsion 3 | . 3 Utility . | . . Weapon 2 | . 2 Highest Loss Streak 2 | . 2 To Critical Strikes . | . . Average Slot Usage (%) 96 | . 96 Engine 12 | . 12 Leg 1 | . 1 Wheel 25 | . 25 Device 14 | . 14 Storage 14 | . 14 Energy Gun 28 | . 28 Naked Turns . | . . Heaviest Build 31 | 13 31 Greatest Support 20 | 20 20 Greatest Overweight (x) 2 | 2 1 Average Overweight (x) . | . . Largest Inventory Capacity 15 | 8 15 Average Capacity 10 | 7 10 Most Carried 13 | 8 13 Average Carried 8 | 5 8 Final Capacity 15 | 8 15 Final Carried 12 | 8 12 Class Distribution -------------------- 100% | Mutant Dominant Class ---------------- Mutant | -10/Materials Resources | -11 -10 ----------- Run | Scr Mat Matter Collected 570 | 258 312 Remotely . | . . Salvage Created 739 | 82 657 Parts 44 | 9 35 Haulers Intercepted 1 | . 1 Recyclers Shooed . | . . Parts Field Recycled . | . . Retrieved Matter . | . . Parts Self-Destructed . | . . Prevented . | . . Kills | -11 -10 ------- Run | Scr Mat Combat Hostiles Destroyed 15 | . 15 Guns 13 | . 13 Classes Destroyed 6 | 1 5 Builder 1 | . 1 Tunneler 4 | 4 . Hauler 1 | . 1 Watcher 2 | . 2 Swarmer 3 | . 3 Grunt 12 | . 12 Best Kill Streak 3 | 2 3 Combat Bots Only 3 | . 3 Max Kills in Single Turn 1 | 1 1 Gunslinging . | . . Exploded . | . . Melee . | . . Uniques/NPCs Destroyed . | . . Combat | -11 -10 -------- Run | Scr Mat Damage Taken 723 | . 723 Core 250 | . 250 Absorbed by Shields . | . . Core Remaining (%) 100 | 100 . Volleys Fired 73 | 9 64 Largest 2 | 2 2 Hottest 130 | 100 130 Shots Fired 143 | 18 125 Gun 143 | 18 125 Cannon . | . . Launcher . | . . Special . | . . Kinetic . | . . Thermal 143 | 18 125 Explosive . | . . Electromagnetic . | . . Robot Hit Streak 7 | 5 7 Robot Miss Streak 3 | 2 3 Penetration Max . | . . Secondary Targets 1 | . 1 Max Gunslinging Chain 1 | . 1 Shots Hit Robots 94 | 12 82 Core Hits 33 | 4 29 Critical Kills . | . . Critical Parts Destroyed . | . . Critical Strikes 10 | 1 9 Burn 10 | 1 9 Melee Attacks . | . . Impact . | . . Slashing . | . . Piercing . | . . Sneak Attacks . | . . Combat Hostiles . | . . Follow-up Attacks . | . . Damage Inflicted 1252 | 148 1104 Guns 1252 | 148 1104 Cannons . | . . Explosions . | . . Melee . | . . Ramming . | . . Kinetic . | . . Thermal 1252 | 148 1104 Explosive . | . . Electromagnetic . | . . Impact . | . . Slashing . | . . Piercing . | . . Highest Corruption . | . . Average Corruption . | . . Corruption Purged . | . . Corruption Blocked . | . . Overload Shots . | . . Overflow Damage . | . . Projectiles . | . . Explosions . | . . Melee . | . . Knockbacks . | . . Impact . | . . Kinetic . | . . Secondary . | . . Self-Inflicted Damage . | . . Shots . | . . Rammed . | . . Targets Rammed . | . . Kicked . | . . Crushed . | . . Highest Temperature 219 | 119 219 Average Temperature 59 | 47 61 Received Heat Transfer 360 | . 360 Effects 2 | . 2 Energy Bleed 1 | . 1 Interference 1 | . 1 Siege Activations . | . . Robots Corrupted . | . . Combat Hostiles . | . . Parts Fried . | . . Impact Corruptions . | . . Robots Melted 2 | . 2 Combat Hostiles 2 | . 2 Parts Melted 13 | 4 9 Heat Transferred 4292 | 518 3774 Parts Sabotaged . | . . Parts Stolen . | . . Parts Stripped . | . . Power Chain Reactions . | . . Missiles Intercepted . | . . Alert | -11 -10 ------- Run | Scr Mat Peak Influence 197 | 20 197 Initial 13 | . 13 Average 77 | 7 90 Maximum Alert Level . | . . Low Security (%) 100 | 100 100 Level 1 . | . . Level 2 . | . . Level 3 . | . . Level 4 . | . . Level 5 . | . . High Security . | . . Max Security . | . . Squads Dispatched 4 | . 4 Investigation 2 | . 2 Extermination . | . . Reinforcement 2 | . 2 Assault . | . . Garrison . | . . Intercept . | . . Searches Triggered . | . . Construction Impeded . | . . Haulers Reinforced . | . . Active Scanning Responses . | . . Cargo Convoy Interrupts . | . . Stealth | -11 -10 --------- Run | Scr Mat Distress Signals 3 | . 3 Communications Jammed . | . . Distress Signals . | . . Times Spotted 30 | . 30 Peak Tracking Total 5 | . 5 Tactical Retreats 1 | . 1 Traps | -11 -10 ------- Run | Scr Mat Traps Triggered 2 | . 2 Indirectly . | . . Trap Hack Attempts . | . . Triggered . | . . Disarmed . | . . Reprogrammed . | . . Reused . | . . Traps Extracted . | . . Installed . | . . Triggered . | . . Machines | -11 -10 ---------- Run | Scr Mat Machines Disabled . | . . Max in Single Turn . | . . Machines Sabotaged . | . . Garrisons Compromised . | . . Overloaded Fab Kills . | . . Hacking | -11 -10 --------- Run | Scr Mat Machines Accessed 5 | . 5 Terminals 4 | . 4 Fabricators . | . . Repair Stations . | . . Recycling Units 1 | . 1 Scanalyzers . | . . Garrison Access . | . . Total Hacks 18 | . 18 Successful 10 | . 10 Failed 8 | . 8 Catastrophic . | . . Database Lockouts . | . . Manual 11 | . 11 Terminals 16 | . 16 Fabricators . | . . Repair Stations . | . . Recycling Units 2 | . 2 Scanalyzers . | . . Garrison Access . | . . Terminal Hacks 4 | . 4 Alert Level 1 | . 1 Unreport Threat 2 | . 2 Locate Traps 1 | . 1 Fabricator Hacks . | . . Repair Station Hacks . | . . Recycling Unit Hacks 1 | . 1 Retrieve Components 1 | . 1 Scanalyzer . | . . Garrison Access Hacks . | . . Unauthorized Hacks 5 | . 5 Terminals 4 | . 4 Track 2 | . 2 Botnet 2 | . 2 Fabricators . | . . Repair Stations . | . . Recycling Units 1 | . 1 Reject 1 | . 1 Scanalyzers . | . . Garrison Access . | . . Data Cores Recovered . | . . Used . | . . Hacking Detections 4 | . 4 Full Trace Events 1 | . 1 Feedback Events . | . . Feedback Blocked . | . . Robot Schematics Acquired . | . . Robots Built . | . . Authchips . | . . Time . | . . Total Robot Build Rating . | . . Part Schematics Acquired . | . . Parts Built . | . . Authchips . | . . Time . | . . Total Part Build Rating . | . . Parts Repaired . | . . Time . | . . Parts Recycled . | . . Recycled Matter . | . . Retrieved Matter . | . . Retrieved Components 3 | . 3 Parts Scanalyzed . | . . Part Schematics Acquired . | . . Parts Damaged . | . . Bothacking | -11 -10 ------------ Run | Scr Mat Used RIF Installer . | . . Robots Hacked . | . . Non-combat . | . . Combat . | . . Robot Hacks Applied . | . . Relay Couplers Released . | . . Fabnet Peak Effective % . | . . Robots Rewired . | . . Allies Hacked . | . . Hacks Repelled . | . . Allies | -11 -10 -------- Run | Scr Mat Total Allies . | . . Largest Group . | . . Highest-Rated Group . | . . Highest-Rated Ally . | . . Total Orders . | . . Ally Attacks . | . . Total Damage . | . . Kills . | . . Allies Corrupted . | . . Allies Melted . | . . Intel | -11 -10 ------- Run | Scr Mat Robot Analysis Total . | . . Derelict Logs Recovered . | . . Drone Launches . | . . Drone Recoveries . | . . Exploration | -11 -10 ------------- Run | Scr Mat Turns Passed 901 | 148 753 Spaces Moved 602 | 87 515 Core 5 | 5 . Treads . | . . Legs 107 | 82 25 Wheels 490 | . 490 Hover . | . . Flight . | . . Fastest Speed 50 | 50 80 Average Speed 92 | 118 87 Slowest Speed 150 | 150 120 Overloaded Moves . | . . Propulsion Burnouts . | . . Robots Hopped . | . . Cave-ins Triggered . | . . Exploration Rate (%) 46 | 5 87 Regions Visited 1 Branch Regions . Pre-discovered Areas . | . . Known Exits Taken . | . . Unknown Exits Taken 1 | 1 . Scrap Searched . | . . Spaces Dug . | . . Terrain Destroyed . | . . Melee . | . . Projectile . | . . AOE . | . . Terrain Rammed . | . . Walls Destroyed . | . . Machines Disabled . | . . Actions | -11 -10 --------- Run | Scr Mat Total 807 | 110 697 Wait 82 | . 82 Move 601 | 86 515 Hop . | . . Pick Up 23 | 8 15 Fast Attach 8 | 7 1 Attach 4 | . 4 Detach . | . . Swap 6 | . 6 Drop 10 | . 10 Fire 73 | 9 64 Melee . | . . Ram . | . . Kick . | . . Crush . | . . Escape Stasis . | . . Rewire . | . . Trap . | . . Miscellaneous . | . . Route ------- -11/Scrapyard -10/Materials (discovered 4 exits: [*Mat x2] / [*Min x2]) History --------- Turn | Location | Event 5 | -11/Scrapyard | Discovered new exit (range 15) 149 | -11/Scrapyard | Entered Materials 303 | -10/Materials | Build established: Mutant 388 | -10/Materials | Discovered new exit (range 9) 438 | -10/Materials | Discovered new exit (range 5) 524 | -10/Materials | Discovered new exit (range 7) 546 | -10/Materials | Core integrity fell below 50% 638 | -10/Materials | Core integrity fell below 20% 657 | -10/Materials | Discovered new exit (range 12) 902 | -10/Materials | Destroyed by G-34 Mercenary with Small Laser Last Messages --------------- 00782_ G-34 Mercenary critical meltdown. 00782_ Sml. Laser melted. 00782_ Ion Engine melted. 00784_ Acquired 39 matter. 00790_ A-02 Transporter suffers critical hit (Burn). 00810_ Acquired 41 matter. 00833_ Dropped Mining Laser. 00836_ Acquired Targeting Computer. 00838_ Acquired Utility Shielding. 00847_ Acquired Mining Claw. 00856_ Triggered Alarm Trap. 00856_ An alarm sounds. 00856_ ALERT: Alarm triggered, dispatching investigation squad. 00857_ Triggered Alarm Trap. 00857_ An alarm sounds. 00857_ ALERT: Alarm triggered, dispatching investigation squad. 00862_ U-05 Engineer lays Concrete. 00895_ G-34 Mercenary destroyed. 00895_ Wheel destroyed. 00897_ Med. Laser destroyed. Map ----- +----------------------------------------------------+ | ???????# #????????? ??? | | ?######## #?????###?? ??? | | ?# # #######T####+#### | | ?# + | | ?#]] # | | ?#]] # | | ?# ######+#########+#### | | ?# #???! ????# ## | | ?########??# """ #??# ## " | | ???????????# """ #??# ## " | | ???????????# """ #??# " ## " | | ???????????# #??# T ## | | ???????????# * #??# " ## " | | ???????????########??# % ## " | | ??????????????????#####+### " | | ??????????????????# # | | ??????????????????# [ ""### | | ??????????????????# %= ""#?? | | ??????????????????# * """#?? | | ??????????????????# #?? | | ???????########???##+##+###?# | | ######?# ! ?????# #???# | | # #?#""" ?????# #???# | | # ! #??""" ?###### ##### | | # #??""" ?# % | | # @###? ??# ######%## | | # %g=+? ??# ######%#? | | # # ###+#### # // # #? | | # gg# !! # / #%#? | | # + !! | + #+## | | # #### # # | | ######??# # # "" | | ????????# ####### "" | | ????????# #?????# "" | | ??????# +?????# | | ??????# """" #?????# "" | | ??????# """" #?????# "" | | ??????# """" #?????# "" | | ??????# #?????# | | ??????# #?????# "" | | ??????# #?????# "" | | ??????# "" #?????# "" | | ??????# "T #?????# | | ??????# "" ?????#### | | ??????+ ?? ????????? | | ??????# ?? ?????????? | | ??????###+##????????????????? | | ???????????????????????????#? | | ????????????????????????????? | | ????????????????????????????? | +----------------------------------------------------+ Best States ------------- Heat Dissipation 35 Energy Generation 10 Energy Capacity 250 Matter Stores 300 Matter Capacity 300 Sight Range 16 Terrain Scan Range 16 Terrain Scan Density 10 Evasion (%) 55 Item Schematics ----------------- None Robot Schematics ------------------ None Fabricated ------------ Nothing Alien Tech Used ----------------- None Achievements -------------- None Challenges ------------ None Game ------ Seed GuidanceNeutrinoRifle Manual? 0 Play Time 00:08:52 Cumulative 265.8 hours Start 2022.04.09 @ 22:58:15 End 2022.04.09 @ 23:09:54 Sessions 1 Manual Loads 0 Difficulty Rogue Special Mode None Game No. 228 Rogue 228 Adventurer 0 Explorer 0 Win Type - Total 0 Types 0/0/0/0/0/0/0/0/0 Lore% 51 Gallery% 58 Achievement% 42 Wizard Run 0 Options --------- ASCII 0 Keyboard 0 Movement Mouse Keybinds 0 Fullscreen 1 Font 16/SmallcapsGlow Map View 75x55 Tactical HUD 1 Map Filters NONE Filters NONE Steam 1 RUN: 41c2155f-93df-4ce8-8f4e-62496e990016